Cogmind - Beta 10.2 @@@ ROGUE MODE // 2022.01.13 @ 19:33:04 Player: Enzo Result: Destroyed by S-27 Virus with Autogun Performance ------------- Evolutions (5) 2500 Regions Visited (16) 3200 Robots Destroyed (161) 805 Value Destroyed (7028) 7028 Prototype IDs (29) 580 Alien Tech Used (0) 0 Bonus (4224) 4224 TOTAL SCORE: 18337 Bonus ------- High Alert Combat Kills 462 Follower Combat Kills 169 Entered Garrisons 1200 Used RIF Installer 3000 Friendly Fire -607 Cogmind --------- Core Integrity 0/1000 Matter 292/300 Energy 100/100 System Corruption 9% Temperature Cool (12) Movement Core (150) Ox2 Location -5/Garrison Parts ------- > --- POWER (1) -------- (None) > --- PROPULSION (4) --- (None) > --- UTILITY (7) ------ Medium Storage Unit Improved Signal Interpreter Advanced Terrain Scan Processor Relay Coupler [NC] (33) Relay Coupler [Behemoth] (13) > --- WEAPON (5) ------- (None) > --- INVENTORY (8) ---- Light Fission Core Fusion Compressor Improved Transmission Jammer Advanced ECM Suite Makeshift Cloaking Device Relay Coupler [Sentry] (19) Relay Coupler [Behemoth] (9) Peak State ------------ > --- POWER ------------ Light Angular Momentum Engine > --- PROPULSION ------- Improved Airjet Gravmag Array > --- UTILITY ---------- Medium Storage Unit Advanced Sensor Array Improved Signal Interpreter Advanced Terrain Scanner Improved Terrain Scan Processor Relay Coupler [Grunt] > --- WEAPON ----------- XL Autogun Array Remote Datajack > --- INVENTORY -------- Angular Momentum Engine Gravmag Array Makeshift Cloaking Device Relay Coupler [NC] Relay Coupler [Swarmer] Relay Coupler [Grunt] Heavy Missile Launcher [Rating: 78] Favorites ----------- Power Light Angular Momentum Engine Engine Light Angular Momentum Engine Power Core Light Fission Core Propulsion Light Treads Treads Light Treads Leg Aluminum Leg Wheel Wheel Hover Unit Improved Airjet Utility Medium Storage Unit Device Advanced Sensor Array Storage Medium Storage Unit Processor Improved Signal Interpreter Hackware Relay Coupler [Grunt] Weapon XL Autogun Array Energy Gun EM Pulse Gun Energy Cannon Neutron Cannon Ballistic Gun XL Autogun Array Ballistic Cannon Enhanced Gauss Cannon Launcher Heavy Missile Launcher Special Weapon Remote Datajack Piercing Weapon Makeshift Spear Special Melee Weapon Improved Datajack Build | -11 -10 -10 -10 -9 -8 -8 -7 -7 -7 -7 -6 -6 -6 -6 -5 -5 ------- Run | Scr Mat Min Exi Min Mat Gar Fac Gar Fac Gar Fac Gar Fac Gar Fac Gar Slots Evolved 10 | . . . . . 4 . 2 . . . 2 . . . 2 . Power . | . . . . . . . . . . . . . . . . . Propulsion 2 | . . . . . . . 1 . . . . . . . 1 . Utility 5 | . . . . . 2 . . . . . 2 . . . 1 . Weapon 3 | . . . . . 2 . 1 . . . . . . . . . Parts Attached 124 | 6 6 2 3 . 12 . 4 12 19 2 13 3 2 4 25 11 Power 14 | 1 1 . . . 2 . 1 2 4 . 1 . . 1 1 . Engine 8 | 1 1 . . . 1 . 1 . 4 . . . . . . . Core 6 | . . . . . 1 . . 2 . . 1 . . 1 1 . Reactor . | . . . . . . . . . . . . . . . . . Propulsion 30 | 2 1 . . . 3 . . 6 8 . 1 . . 1 4 4 Treads 9 | 2 1 . . . . . . 2 4 . . . . . . . Leg 4 | . . . . . . . . 4 . . . . . . . . Wheel 3 | . . . . . 3 . . . . . . . . . . . Hover 14 | . . . . . . . . . 4 . 1 . . 1 4 4 Flight . | . . . . . . . . . . . . . . . . . Utility 36 | 1 2 . 2 . 4 . 1 1 2 . 7 2 1 1 9 3 Device 18 | . 1 . . . 2 . . . 1 . 4 1 1 1 6 1 Storage 5 | 1 1 . 2 . . . . . 1 . . . . . . . Processor 5 | . . . . . 2 . . . . . 1 . . . 2 . Hackware 8 | . . . . . . . 1 1 . . 2 1 . . 1 2 Protection . | . . . . . . . . . . . . . . . . . Artifact . | . . . . . . . . . . . . . . . . . Weapon 44 | 2 2 2 1 . 3 . 2 3 5 2 4 1 1 1 11 4 Energy Gun 7 | 2 2 2 . . . . . . . . . . . . 1 . Energy Cannon 3 | . . . . . . . . . . . . . . . 3 . Ballistic Gun 9 | . . . . . 2 . . . 1 . 1 . . . 1 4 Ballistic Cannon 3 | . . . . . . . . . . . 1 . . . 2 . Launcher 9 | . . . . . 1 . 1 2 2 1 . . . 1 1 . Special Weapon 10 | . . . . . . . . . 2 1 2 1 1 . 3 . Impact Weapon . | . . . . . . . . . . . . . . . . . Slashing Weapon . | . . . . . . . . . . . . . . . . . Piercing Weapon 1 | . . . 1 . . . . . . . . . . . . . Special Melee Weapon 2 | . . . . . . . 1 1 . . . . . . . . Unidentified Prototypes 4 | . . . . . . . . . 1 . 1 . . . 2 . Parts Lost 30 | . 1 2 . . . . . 1 . . . . . 3 4 19 Power 3 | . 1 . . . . . . . . . . . . . 1 1 Propulsion 9 | . . . . . . . . 1 . . . . . 1 . 7 Utility 5 | . . . . . . . . . . . . . . 1 . 4 Weapon 13 | . . 2 . . . . . . . . . . . 1 3 7 Highest Loss Streak 8 | . 1 2 . . . . . 1 . . . . . 2 1 8 Average Slot Usage (%) 79 | . 96 99 100 100 70 72 67 73 75 76 73 73 73 72 76 65 Engine 5 | . 14 14 14 14 4 9 6 . 5 7 4 . . . . . Core 2 | . . . . . 4 . . 6 1 . 1 6 6 6 4 4 Treads 9 | . 28 28 28 28 4 . . 8 16 . . . . . . . Leg 1 | . . . . . . . . 6 3 . . . . . . . Wheel 2 | . . . . . 13 18 15 5 . . . . . . . . Hover 6 | . . . . . . . . . 2 23 13 13 13 13 15 14 Device 4 | . 9 . . . 12 9 3 . . . 7 6 6 6 8 9 Storage 11 | . 14 28 28 28 17 9 7 7 6 7 6 6 6 6 5 5 Processor 9 | . . . . . 5 18 15 15 15 15 13 13 13 12 9 11 Hackware 5 | . . . . . . . 3 7 7 7 11 13 13 13 10 8 Energy Gun 5 | . 28 27 19 14 . . . . . . . . . . . 2 Ballistic Gun 4 | . . . . . 8 9 7 7 6 7 6 6 6 4 . 3 Launcher 1 | . . . . . . . 2 4 6 . . . . 1 2 . Special Weapon 2 | . . . . . . . . . . 6 6 6 6 6 4 . Piercing Weapon 1 | . . . 8 14 . . . . . . . . . . . . Naked Turns . | . . . . . . . . . . . . . . . . . Heaviest Build 46 | 11 17 17 25 25 41 33 39 34 40 39 37 34 34 34 46 33 Greatest Support 60 | 40 40 40 40 40 40 20 20 40 60 35 41 41 41 41 53 37 Greatest Overweight (x) 5 | . . . . . 3 1 1 3 1 1 1 . . . 1 5 Average Overweight (x) . | . . . . . 1 1 1 . . . . . . . . . Largest Inventory Capacity 12 | 6 8 8 12 12 12 8 8 8 8 8 8 8 8 8 8 8 Average Capacity 8 | 5 6 8 9 12 11 8 8 8 7 8 8 8 8 8 8 8 Most Carried 12 | 3 7 7 12 12 12 8 8 8 8 8 8 8 8 8 8 8 Average Carried 7 | 1 5 6 8 12 9 7 7 8 7 7 7 7 8 7 6 7 Final Capacity 12 | 6 8 8 12 12 8 8 8 8 8 8 8 8 8 8 8 8 Final Carried 12 | 3 7 7 12 12 8 8 8 8 8 8 8 8 8 5 7 7 Class Distribution -------------------- 33% | Mutant 27% | Scavenger-Skirmisher 14% | Skirmisher 13% | Bothacker-Skirmisher 8% | Scout Dominant Class ---------------- Mutant | -10/Materials Mutant | -10/Mines Mutant | -10/Exiles Mutant | -9/Mines Scavenger-Skirmisher | -8/Materials Scavenger-Skirmisher | -8/Garrison Scavenger-Skirmisher | -7/Factory Scavenger-Skirmisher | -7/Garrison Bothacker-Skirmisher | -7/Factory Bothacker-Skirmisher | -7/Garrison Skirmisher | -6/Factory Skirmisher | -6/Garrison Skirmisher | -6/Factory Skirmisher | -6/Garrison Scout | -5/Factory Scout | -5/Garrison Resources | -11 -10 -10 -10 -9 -8 -8 -7 -7 -7 -7 -6 -6 -6 -6 -5 -5 ----------- Run | Scr Mat Min Exi Min Mat Gar Fac Gar Fac Gar Fac Gar Fac Gar Fac Gar Matter Collected 5784 | 253 67 15 . . 527 430 280 678 669 705 323 312 142 345 844 194 Remotely . | . . . . . . . . . . . . . . . . . Salvage Created 6548 | 88 391 104 . . 563 505 217 927 782 844 163 416 42 516 697 293 Parts 327 | 5 16 3 . . 34 21 10 39 61 40 10 14 3 19 36 16 Haulers Intercepted 3 | . 2 . . . . . . . 1 . . . . . . . Recyclers Shooed 1 | . . . . . . . . . . . . . . . 1 . Parts Field Recycled . | . . . . . . . . . . . . . . . . . Retrieved Matter . | . . . . . . . . . . . . . . . . . Parts Self-Destructed . | . . . . . . . . . . . . . . . . . Prevented . | . . . . . . . . . . . . . . . . . Kills | -11 -10 -10 -10 -9 -8 -8 -7 -7 -7 -7 -6 -6 -6 -6 -5 -5 ------- Run | Scr Mat Min Exi Min Mat Gar Fac Gar Fac Gar Fac Gar Fac Gar Fac Gar Combat Hostiles Destroyed 124 | . 6 2 . . 10 14 3 19 12 19 1 6 1 11 13 7 Melee 2 | . . . . . . . . . . . . . . . 1 1 Guns 98 | . 4 2 . . 8 14 3 17 12 16 1 6 1 8 . 6 Cannons 7 | . . . . . . . . . . . . . . . 7 . AOE 17 | . 2 . . . 2 . . 2 . 3 . . . 3 5 . Classes Destroyed 16 | 2 3 . . . 4 . 3 . 1 1 . . . 1 1 . Worker 6 | . . . . . 1 . 1 . 2 . 1 . . . 1 . Builder 6 | . 1 . . . 2 . . . 2 . . . . . 1 . Tunneler 3 | 1 . . . . 1 . . . . . . . . . 1 . Hauler 3 | . 2 . . . . . . . 1 . . . . . . . Recycler 3 | 1 . . . . 1 . . . . . . . . . 1 . Mechanic 1 | . . . . . . . . . . . . . . . 1 . Operator 3 | . . . . . . . 1 . 2 . . . . . . . Watcher 8 | . . . . . 2 . . . 1 . 2 . . . 3 . Swarmer 35 | . . . . . 4 6 . 4 2 7 . . . 3 5 4 Saboteur 1 | . . . . . . . . . . 1 . . . . . . Grunt 59 | . 6 2 . . 5 8 1 11 2 12 . 6 . 3 3 . Brawler 3 | . . . . . . . 1 . . 1 . . . 1 . . Duelist 7 | . . . . . . . 1 2 . 1 . . . 1 2 . Sentry 11 | . . . . . 1 . . 2 4 . 1 . . 1 1 1 Hunter 2 | . . . . . . . . . . . . . . 2 . . Programmer 10 | . . . . . . . . . 4 . . 1 1 . 2 2 Best Kill Streak 9 | 1 3 1 . . 8 5 5 9 3 9 2 4 1 6 5 5 Combat Bots Only 9 | . 3 1 . . 6 5 3 9 3 9 1 4 1 6 5 5 Max Kills in Single Turn 3 | 1 1 1 . . 2 1 1 2 2 3 1 1 1 2 2 1 Gunslinging . | . . . . . . . . . . . . . . . . . Exploded 3 | . 1 . . . 2 . . 1 . 3 . . . 2 2 . Melee 1 | . . . . . . . . . . . . . . . 1 1 Uniques/NPCs Destroyed . | . . . . . . . . . . . . . . . . . Combat | -11 -10 -10 -10 -9 -8 -8 -7 -7 -7 -7 -6 -6 -6 -6 -5 -5 -------- Run | Scr Mat Min Exi Min Mat Gar Fac Gar Fac Gar Fac Gar Fac Gar Fac Gar Damage Taken 5418 | . 226 149 . . 238 152 73 251 276 136 56 148 31 606 1178 1898 Core 1378 | . 11 18 . . 34 10 . 65 53 . 5 . . 170 394 618 Absorbed by Shields 60 | . . . . . . . . . . . . . . . . 60 Core Remaining (%) 88 | 100 . . . 88 . 92 . . . 83 . . . 79 . . Volleys Fired 433 | 5 23 11 . . 30 32 12 38 44 37 17 18 12 37 71 46 Largest 3 | 2 2 2 . . 1 1 1 1 1 1 1 1 1 1 3 2 Hottest 228 | 100 100 80 . . 60 60 60 60 60 60 60 60 60 60 228 138 Shots Fired 489 | 10 46 21 . . 30 32 12 38 44 37 17 18 12 37 84 51 Gun 381 | 10 46 21 . . 26 32 12 35 44 31 15 15 12 28 5 49 Cannon 67 | . . . . . . . . . . . . . . . 65 2 Launcher 20 | . . . . . 4 . . 3 . 1 . . . 7 5 . Special 21 | . . . . . . . . . . 5 2 3 . 2 9 . Kinetic 313 | . . . . . 26 32 12 35 44 31 15 15 12 28 31 32 Thermal 76 | 10 12 . . . . . . . . . . . . . 35 19 Explosive 13 | . . . . . . . . . . 1 . . . 7 5 . Electromagnetic 66 | . 34 21 . . 4 . . 3 . . . . . . 4 . Robot Hit Streak 21 | 6 6 3 . . 8 9 10 14 16 11 6 11 9 7 14 21 Robot Miss Streak 6 | 1 2 5 . . 3 4 1 5 3 5 6 3 2 4 3 3 Penetration Max . | . . . . . . . . . . . . . . . . . Secondary Targets . | . . . . . . . . . . . . . . . . . Shots Hit Robots 355 | 8 30 12 . . 26 31 15 33 30 30 11 13 3 31 53 29 Core Hits 278 | 3 15 5 . . 23 23 9 37 28 33 6 9 1 30 36 20 Critical Hits 6 | . . . . . . . . . . . . . . . 6 . Critical Kills . | . . . . . . . . . . . . . . . . . Critical Parts Destroyed 6 | . . . . . . . . . . . . . . . 6 . Melee Attacks 5 | . . . . . . . 3 2 . . . . . . . . Impact . | . . . . . . . . . . . . . . . . . Slashing . | . . . . . . . . . . . . . . . . . Piercing . | . . . . . . . . . . . . . . . . . Sneak Attacks 1 | . . . . . . . 1 . . . . . . . . . Combat Hostiles . | . . . . . . . . . . . . . . . . . Follow-up Attacks . | . . . . . . . . . . . . . . . . . Damage Inflicted 16412 | 114 559 142 . . 1295 1440 695 1959 1606 1762 385 619 186 2057 2776 817 Guns 12215 | 114 398 142 . . 1144 1440 695 1829 1606 1412 385 619 186 1450 118 677 Cannons 1534 | . . . . . . . . . . . . . . . 1473 61 Explosions 2559 | . 161 . . . 151 . . 130 . 350 . . . 607 1160 . Melee . | . . . . . . . . . . . . . . . . . Ramming 104 | . . . . . . . . . . . . . . . 25 79 Kinetic 12071 | . . . . . 1144 1440 695 1829 1606 1412 385 619 186 1450 891 414 Thermal 1320 | 114 262 . . . 32 . . . . . . . . . 588 324 Explosive 2117 | . . . . . . . . . . 350 . . . 607 1160 . Electromagnetic 800 | . 297 142 . . 119 . . 130 . . . . . . 112 . Impact . | . . . . . . . . . . . . . . . . . Slashing . | . . . . . . . . . . . . . . . . . Piercing . | . . . . . . . . . . . . . . . . . Highest Corruption 12 | . . . . . . . . . . . 1 1 4 12 2 9 Average Corruption 2 | . . . . . . . . . . . 1 1 1 4 2 5 Corruption Purged . | . . . . . . . . . . . . . . . . . Effects 28 | . . . . . . . . . . . . . 3 9 6 10 Message Errors 9 | . . . . . . . . . . . . . 1 3 3 2 Matter Fused 5 | . . . . . . . . . . . . . . 4 . 1 Heat Flow Errors 2 | . . . . . . . . . . . . . . . . 2 Energy Discharges 2 | . . . . . . . . . . . . . 1 . 1 . Data Loss (minor) 2 | . . . . . . . . . . . . . 1 . 1 . Data Loss (major) 1 | . . . . . . . . . . . . . . . . 1 Misfires 1 | . . . . . . . . . . . . . . . . 1 Targeting Errors 4 | . . . . . . . . . . . . . . 2 . 2 Weapon Failures 2 | . . . . . . . . . . . . . . . 1 1 Overload Shots . | . . . . . . . . . . . . . . . . . Overflow Damage 167 | . 37 . . . . . . . . . . . . 27 99 4 Projectiles . | . . . . . . . . . . . . . . . . . Explosions 163 | . 37 . . . . . . . . . . . . 27 99 . Melee 4 | . . . . . . . . . . . . . . . . 4 Knockbacks 10 | . . . . . . . . . . . . . . . 10 . Impact . | . . . . . . . . . . . . . . . . . Kinetic 10 | . . . . . . . . . . . . . . . 10 . Secondary . | . . . . . . . . . . . . . . . . . Self-Inflicted Damage 124 | . 53 . . . . . . . . . . . . 24 11 36 Shots 2 | . 1 . . . . . . . . . . . . 1 . . Rammed 20 | . . . . . . . . . . . . . . . 3 17 Targets Rammed 20 | . . . . . . . . . . . . . . . 3 17 Kicked . | . . . . . . . . . . . . . . . . . Crushed . | . . . . . . . . . . . . . . . . . Highest Temperature 333 | 117 195 241 . . 297 333 231 297 264 180 108 222 259 293 269 316 Average Temperature 96 | 51 49 119 . . 99 142 93 95 73 56 40 62 115 118 118 135 Received Heat Transfer 882 | . 99 81 . . 99 54 18 45 60 54 . 63 . 63 204 42 Effects 9 | . . . . . 2 . 1 . . . . . . . 5 1 Energy Bleed 3 | . . . . . . . 1 . . . . . . . 1 1 Interference 6 | . . . . . 2 . . . . . . . . . 4 . Siege Activations . | . . . . . . . . . . . . . . . . . Robots Corrupted . | . . . . . . . . . . . . . . . . . Combat Hostiles . | . . . . . . . . . . . . . . . . . Parts Fried 1 | . 1 . . . . . . . . . . . . . . . Impact Corruptions 1 | . . . . . . . . . . . . . . . . 1 Robots Melted . | . . . . . . . . . . . . . . . . . Combat Hostiles . | . . . . . . . . . . . . . . . . . Parts Melted 10 | 2 1 . . . . . . . . 1 . 1 . 2 1 2 Heat Transferred 2033 | 333 446 . . . 50 . . . . . . . . . 760 444 Parts Sabotaged . | . . . . . . . . . . . . . . . . . Parts Stolen . | . . . . . . . . . . . . . . . . . Parts Stripped . | . . . . . . . . . . . . . . . . . Power Chain Reactions 5 | . 2 . . . 2 . . 1 . . . . . . . . Missiles Intercepted . | . . . . . . . . . . . . . . . . . Alert | -11 -10 -10 -10 -9 -8 -8 -7 -7 -7 -7 -6 -6 -6 -6 -5 -5 ------- Run | Scr Mat Min Exi Min Mat Gar Fac Gar Fac Gar Fac Gar Fac Gar Fac Gar Peak Influence 828 | 10 230 119 . 21 245 424 382 760 474 828 546 476 276 433 526 383 Initial 434 | . 6 89 . . . 44 222 267 399 188 434 263 249 122 224 243 Average 304 | 4 85 109 . 2 84 249 256 537 238 555 438 338 214 248 372 319 Maximum Alert Level 3 | . 1 . . . 1 2 1 3 2 3 2 2 1 2 2 1 Low Security (%) 26 | 100 82 100 . 100 83 26 . . 36 3 . . 37 37 . . Level 1 47 | . 17 . . . 16 65 100 30 59 28 17 77 62 39 63 100 Level 2 21 | . . . . . . 7 . 46 3 39 82 22 . 22 36 . Level 3 4 | . . . . . . . . 23 . 28 . . . . . . Level 4 . | . . . . . . . . . . . . . . . . . Level 5 . | . . . . . . . . . . . . . . . . . High Security . | . . . . . . . . . . . . . . . . . Max Security . | . . . . . . . . . . . . . . . . . Squads Dispatched 17 | . 1 . . . 1 . 3 . 5 . 2 . 1 . 4 . Investigation 2 | . 1 . . . . . . . 1 . . . . . . . Extermination 5 | . . . . . . . . . 4 . . . . . 1 . Reinforcement 3 | . . . . . . . 1 . . . 1 . . . 1 . Assault 2 | . . . . . . . . . . . . . . . 2 . Garrison 5 | . . . . . 1 . 2 . . . 1 . 1 . . . Intercept . | . . . . . . . . . . . . . . . . . Construction Impeded 1 | . . . . . . . . . . . . . . . 1 . Haulers Reinforced . | . . . . . . . . . . . . . . . . . Stealth | -11 -10 -10 -10 -9 -8 -8 -7 -7 -7 -7 -6 -6 -6 -6 -5 -5 --------- Run | Scr Mat Min Exi Min Mat Gar Fac Gar Fac Gar Fac Gar Fac Gar Fac Gar Distress Signals 1 | . . . . . . . . . . . . . 1 . . . Communications Jammed . | . . . . . . . . . . . . . . . . . Distress Signals . | . . . . . . . . . . . . . . . . . Times Spotted 204 | . 11 2 . . 13 13 8 21 18 33 6 9 3 15 33 19 Peak Tracking Total 13 | . 5 2 . . 4 3 3 8 4 7 2 3 2 6 5 13 Tactical Retreats 16 | . 2 . . . 1 . 1 2 . 6 1 . . 1 1 1 Traps | -11 -10 -10 -10 -9 -8 -8 -7 -7 -7 -7 -6 -6 -6 -6 -5 -5 ------- Run | Scr Mat Min Exi Min Mat Gar Fac Gar Fac Gar Fac Gar Fac Gar Fac Gar Traps Triggered 30 | . 1 . . . . 7 1 4 1 3 1 2 3 3 1 3 Indirectly 2 | . . . . . . . . 2 . . . . . . . . Trap Hack Attempts . | . . . . . . . . . . . . . . . . . Triggered . | . . . . . . . . . . . . . . . . . Disarmed . | . . . . . . . . . . . . . . . . . Reprogrammed . | . . . . . . . . . . . . . . . . . Reused . | . . . . . . . . . . . . . . . . . Traps Extracted . | . . . . . . . . . . . . . . . . . Installed . | . . . . . . . . . . . . . . . . . Triggered . | . . . . . . . . . . . . . . . . . Machines | -11 -10 -10 -10 -9 -8 -8 -7 -7 -7 -7 -6 -6 -6 -6 -5 -5 ---------- Run | Scr Mat Min Exi Min Mat Gar Fac Gar Fac Gar Fac Gar Fac Gar Fac Gar Machines Disabled 25 | . 1 . . . 5 2 . 2 5 2 1 2 . 1 3 1 Max in Single Turn 2 | . 1 . . . 2 1 . 1 1 1 1 1 . 1 1 1 Garrison Relay 6 | . . . . . . 1 . 1 . 2 . 1 . . . 1 Machines Sabotaged . | . . . . . . . . . . . . . . . . . Garrisons Compromised . | . . . . . . . . . . . . . . . . . Overloaded Fab Kills . | . . . . . . . . . . . . . . . . . Fab Network Shutdowns . | . . . . . . . . . . . . . . . . . Hacking | -11 -10 -10 -10 -9 -8 -8 -7 -7 -7 -7 -6 -6 -6 -6 -5 -5 --------- Run | Scr Mat Min Exi Min Mat Gar Fac Gar Fac Gar Fac Gar Fac Gar Fac Gar Machines Accessed 38 | . . . 3 . 3 . 4 . 11 . 4 . 4 . 9 . Terminals 17 | . . . . . 2 . 1 . 7 . 1 . 2 . 4 . Fabricators 2 | . . . . . . . . . . . 2 . . . . . Repair Stations 6 | . . . . . . . 2 . . . . . 1 . 3 . Recycling Units 1 | . . . . . . . . . 1 . . . . . . . Scanalyzers 3 | . . . . . . . . . 2 . . . . . 1 . Garrison Access 6 | . . . . . 1 . 1 . 1 . 1 . 1 . 1 . Total Hacks 103 | . . . 3 . 11 . 6 . 36 . 8 . 10 . 29 . Successful 55 | . . . 3 . 4 . 3 . 17 . 6 . 4 . 18 . Failed 48 | . . . . . 7 . 3 . 19 . 2 . 6 . 11 . Catastrophic 10 | . . . . . . . 2 . 5 . 1 . 1 . 1 . Database Lockouts . | . . . . . . . . . . . . . . . . . Manual 32 | . . . 1 . 5 . 2 . 16 . 1 . 2 . 5 . Terminals 52 | . . . . . 9 . 1 . 26 . 1 . 5 . 10 . Fabricators 4 | . . . . . . . . . . . 4 . . . . . Repair Stations 17 | . . . . . . . 3 . . . . . 3 . 11 . Recycling Units 3 | . . . . . . . . . 3 . . . . . . . Scanalyzers 13 | . . . . . . . . . 6 . . . . . 7 . Garrison Access 11 | . . . . . 2 . 2 . 1 . 3 . 2 . 1 . Terminal Hacks 17 | . . . 3 . 2 . . . 7 . . . 2 . 3 . Record 3 | . . . 2 . . . . . . . . . . . 1 . Prototype ID Bank 1 | . . . . . . . . . 1 . . . . . . . Terminal Index 1 | . . . . . . . . . 1 . . . . . . . Garrison Index 1 | . . . . . . . . . 1 . . . . . . . Alert Level 1 | . . . . . 1 . . . . . . . . . . . Unreport Threat 5 | . . . . . 1 . . . 2 . . . 1 . 1 . Locate Traps 4 | . . . . . . . . . 2 . . . 1 . 1 . EX-Prototype ID Bank 1 | . . . 1 . . . . . . . . . . . . . Fabricator Hacks 3 | . . . . . . . . . . . 3 . . . . . Load Schematic 2 | . . . . . . . . . . . 2 . . . . . Build 1 | . . . . . . . . . . . 1 . . . . . Repair Station Hacks 8 | . . . . . . . 1 . . . . . . . 7 . Scan Component 5 | . . . . . . . 1 . . . . . . . 4 . Repair 3 | . . . . . . . . . . . . . . . 3 . Recycling Unit Hacks 1 | . . . . . . . . . 1 . . . . . . . Report Inventory 1 | . . . . . . . . . 1 . . . . . . . Scanalyzer 11 | . . . . . . . . . 5 . . . . . 6 . Insert Component 6 | . . . . . . . . . 3 . . . . . 3 . Analyze 5 | . . . . . . . . . 2 . . . . . 3 . Garrison Access Hacks 7 | . . . . . 1 . 1 . 1 . 2 . 1 . 1 . Unlock Access 6 | . . . . . 1 . 1 . 1 . 1 . 1 . 1 . Coupler Status 1 | . . . . . . . . . . . 1 . . . . . Unauthorized Hacks 8 | . . . . . 1 . 1 . 3 . 1 . 1 . 1 . Terminals 5 | . . . . . 1 . . . 3 . . . . . 1 . Botnet 5 | . . . . . 1 . . . 3 . . . . . 1 . Fabricators . | . . . . . . . . . . . . . . . . . Repair Stations . | . . . . . . . . . . . . . . . . . Recycling Units . | . . . . . . . . . . . . . . . . . Scanalyzers . | . . . . . . . . . . . . . . . . . Garrison Access 3 | . . . . . . . 1 . . . 1 . 1 . . . Broadcast 1 | . . . . . . . . . . . . . 1 . . . Reprogram 2 | . . . . . . . 1 . . . 1 . . . . . Data Cores Recovered 1 | . . . . . . . . . 1 . . . . . . . Used . | . . . . . . . . . . . . . . . . . Hacking Detections 32 | . . . . . 3 . 3 . 11 . 3 . 4 . 8 . Full Trace Events 1 | . . . . . . . . . 1 . . . . . . . Feedback Events . | . . . . . . . . . . . . . . . . . Feedback Blocked . | . . . . . . . . . . . . . . . . . Robot Schematics Acquired . | . . . . . . . . . . . . . . . . . Robots Built . | . . . . . . . . . . . . . . . . . Matter . | . . . . . . . . . . . . . . . . . Time . | . . . . . . . . . . . . . . . . . Total Robot Build Rating . | . . . . . . . . . . . . . . . . . Part Schematics Acquired 4 | . . . . . . . . . 1 . . . . . 3 . Parts Built 1 | . . . . . . . . . . . 1 . . . . . Matter 168 | . . . . . . . . . . . 168 . . . . . Time 84 | . . . . . . . . . . . 84 . . . . . Total Part Build Rating 4 | . . . . . . . . . . . 4 . . . . . Parts Repaired 3 | . . . . . . . . . . . . . . . 3 . Time 127 | . . . . . . . . . . . . . . . 127 . Parts Recycled . | . . . . . . . . . . . . . . . . . Recycled Matter . | . . . . . . . . . . . . . . . . . Retrieved Matter . | . . . . . . . . . . . . . . . . . Retrieved Components . | . . . . . . . . . . . . . . . . . Parts Scanalyzed 5 | . . . . . . . . . 3 . . . . . 2 . Part Schematics Acquired 4 | . . . . . . . . . 1 . . . . . 3 . Parts Damaged . | . . . . . . . . . . . . . . . . . Bothacking | -11 -10 -10 -10 -9 -8 -8 -7 -7 -7 -7 -6 -6 -6 -6 -5 -5 ------------ Run | Scr Mat Min Exi Min Mat Gar Fac Gar Fac Gar Fac Gar Fac Gar Fac Gar Used RIF Installer 6 | . . . . . . 1 . 1 . 1 . 1 . 1 . 1 Hotswap 1 | . . . . . . . . . . . . . . . . 1 Command Fork 2 | . . . . . . . . 1 . 1 . . . . . . Patrol Navigation 1 | . . . . . . . . . . . . 1 . . . . Watcher Feeds 1 | . . . . . . . . . . . . . . 1 . . Robots Hacked 17 | . . . . . . . 3 2 . 3 1 3 . 2 3 . Non-combat 4 | . . . . . . . 1 . . . 1 . . . 2 . Combat 13 | . . . . . . . 2 2 . 3 . 3 . 2 1 . Robot Hacks Applied 20 | . . . . . . . 3 2 . 3 2 3 . 2 5 . ignore_parts 1 | . . . . . . . 1 . . . . . . . . . block_reporting 3 | . . . . . . . . . . . 1 . . . 2 . spike_heat 1 | . . . . . . . . . . . . . . 1 . . disable_weapons 3 | . . . . . . . . 1 . . . . . 1 1 . overwrite_iff 9 | . . . . . . . 2 1 . 3 . 3 . . . . formatsys_low 3 | . . . . . . . . . . . 1 . . . 2 . Relay Couplers Released 28 | . . . . . . 4 . 5 . 10 . 4 . . . 5 Machine Destruction 28 | . . . . . . 4 . 5 . 10 . 4 . . . 5 Attached 8 | . . . . . . . 1 1 . . 2 1 . . 1 2 Robots Rewired 7 | . . . 1 . . . . . . 6 . . . . . . Allies Hacked 2 | . . . . . . . . . . . . . . . 2 . Hacks Repelled . | . . . . . . . . . . . . . . . . . Allies | -11 -10 -10 -10 -9 -8 -8 -7 -7 -7 -7 -6 -6 -6 -6 -5 -5 -------- Run | Scr Mat Min Exi Min Mat Gar Fac Gar Fac Gar Fac Gar Fac Gar Fac Gar Total Allies 29 | . . . 1 . . . 4 1 . 11 2 5 3 . 2 . Largest Group 6 | . . . 1 1 . . 2 2 . 6 1 2 3 1 1 . Highest-Rated Group 93 | . . . 8 8 . . 24 24 . 90 41 58 93 31 26 . Highest-Rated Ally 41 | . . . 8 8 . . 16 16 . 16 41 29 31 31 26 . Total Orders . | . . . . . . . . . . . . . . . . . Ally Attacks 102 | . . . . 5 . . 5 23 . 46 . 22 . 1 . . Total Damage 1140 | . . . . 33 . . 47 279 . 376 . 405 . . . . Kills 6 | . . . . 1 . . . 2 . 2 . 1 . . . . Allies Corrupted . | . . . . . . . . . . . . . . . . . Allies Melted . | . . . . . . . . . . . . . . . . . Intel | -11 -10 -10 -10 -9 -8 -8 -7 -7 -7 -7 -6 -6 -6 -6 -5 -5 ------- Run | Scr Mat Min Exi Min Mat Gar Fac Gar Fac Gar Fac Gar Fac Gar Fac Gar Robot Analysis Total . | . . . . . . . . . . . . . . . . . Derelict Logs Recovered 1 | . . 1 . . . . . . . . . . . . . . Drone Launches . | . . . . . . . . . . . . . . . . . Drone Recoveries . | . . . . . . . . . . . . . . . . . Exploration | -11 -10 -10 -10 -9 -8 -8 -7 -7 -7 -7 -6 -6 -6 -6 -5 -5 ------------- Run | Scr Mat Min Exi Min Mat Gar Fac Gar Fac Gar Fac Gar Fac Gar Fac Gar Turns Passed 8632 | 124 343 209 1344 96 443 515 232 677 1258 570 487 319 380 240 1044 351 Spaces Moved 7366 | 62 156 109 825 61 325 437 163 395 862 781 639 269 474 274 1193 341 Core 9 | 5 . . . . . . . . . . . . . . . 4 Treads 2069 | 57 156 109 825 61 54 . . 201 606 . . . . . . . Legs 16 | . . . . . . . . 16 . . . . . . . . Wheels 1049 | . . . . . 271 437 163 178 . . . . . . . . Hover 4223 | . . . . . . . . . 256 781 639 269 474 274 1193 337 Flight . | . . . . . . . . . . . . . . . . . Fastest Speed 45 | 50 160 160 160 160 90 90 90 90 48 48 51 51 51 51 45 48 Average Speed 87 | 151 160 160 160 160 106 90 90 129 127 48 52 51 51 51 52 56 Slowest Speed 300 | 160 160 160 160 160 160 90 90 180 160 108 108 51 51 51 108 300 Overloaded Moves . | . . . . . . . . . . . . . . . . . Propulsion Burnouts . | . . . . . . . . . . . . . . . . . Robots Hopped . | . . . . . . . . . . . . . . . . . Cave-ins Triggered 1 | . . . . . . . . . . . . . . 1 . . Exploration Rate (%) 33 | 5 23 24 91 16 25 70 5 48 16 69 12 40 11 56 29 32 Regions Visited 16 Branch Regions 3 Pre-discovered Areas . | . . . . . . . . . . . . . . . . . Known Exits Taken 6 | . . . . . 1 . 1 . 1 . 1 . 1 . 1 . Unknown Exits Taken 5 | 1 1 1 1 1 . . . . . . . . . . . . Scrap Searched . | . . . . . . . . . . . . . . . . . Spaces Dug 21 | . . . . . . . . . 5 . 3 . 5 . 8 . Terrain Destroyed 139 | . 4 . . . 22 . . 2 12 3 3 . 5 38 50 . Melee . | . . . . . . . . . . . . . . . . . Projectile 51 | . . . . . 17 . . . 12 . 3 . 5 . 14 . AOE 88 | . 4 . . . 5 . . 2 . 3 . . . 38 36 . Terrain Rammed . | . . . . . . . . . . . . . . . . . Walls Destroyed . | . . . . . . . . . . . . . . . . . Machines Disabled . | . . . . . . . . . . . . . . . . . Actions | -11 -10 -10 -10 -9 -8 -8 -7 -7 -7 -7 -6 -6 -6 -6 -5 -5 --------- Run | Scr Mat Min Exi Min Mat Gar Fac Gar Fac Gar Fac Gar Fac Gar Fac Gar Total 9298 | 79 204 123 853 60 425 559 246 555 1027 969 789 448 611 363 1530 457 Wait 928 | 4 10 . 2 . 30 32 60 76 67 59 107 130 123 10 205 13 Move 7345 | 61 155 108 824 60 324 435 162 393 861 779 638 267 473 272 1192 341 Hop . | . . . . . . . . . . . . . . . . . Pick Up 62 | 3 6 2 8 . 12 2 2 2 10 2 4 1 . . 5 3 Fast Attach 61 | 6 3 . 1 . 3 . 1 8 12 . 5 . . . 16 6 Attach 31 | . 2 2 . . 7 . 1 . 2 . 3 . . 2 8 4 Detach 9 | . . . . . 2 . . . 1 . . . . . 5 1 Swap 32 | . 1 . 2 . 2 . 2 4 5 2 5 3 2 2 1 1 Drop 87 | . 4 . 9 . 15 2 3 7 25 2 9 2 1 1 7 . Fire 433 | 5 23 11 . . 30 32 12 38 44 37 17 18 12 37 71 46 Melee 5 | . . . . . . . 3 2 . . . . . . . . Ram 20 | . . . . . . . . . . . . . . . 3 17 Kick . | . . . . . . . . . . . . . . . . . Crush . | . . . . . . . . . . . . . . . . . Escape Stasis 223 | . . . . . . 56 . 25 . 39 . 26 . 39 13 25 Rewire 62 | . . . 7 . . . . . . 49 1 1 . . 4 . Trap . | . . . . . . . . . . . . . . . . . Miscellaneous . | . . . . . . . . . . . . . . . . . Route ------- -11/Scrapyard -10/Materials -10/Mines -10/Exiles -9/Mines -8/Materials (discovered 2 exits: Sto / Gar) -8/Garrison (discovered 3 exits: *Fac x3) -7/Factory -7/Garrison (discovered 2 exits: *Fac x2) -7/Factory (discovered 2 exits: *Low / Gar) -7/Garrison (discovered 3 exits: *Fac x3) -6/Factory -6/Garrison -6/Factory -6/Garrison (discovered 2 exits: *Fac x2) -5/Factory (discovered 3 exits: *Fac / [*Upp] / Gar) -5/Garrison History --------- Turn | Location | Event 3 | -11/Scrapyard | Discovered new exit (range 15) 125 | -11/Scrapyard | Entered Materials 305 | -10/Materials | Build established: Mutant 459 | -10/Materials | Discovered new exit (range 7) 468 | -10/Materials | Entered Mines 481 | -10/Mines | Learned 4 Materials zone layouts 671 | -10/Mines | Deemed a non-threat by the Exiles lab entrance 671 | -10/Mines | Discovered new exit (range 5) 677 | -10/Mines | Entered Exiles 677 | -10/Exiles | Found Exiles lab destroyed 860 | -10/Exiles | Opened EX-Vault 872 | -10/Exiles | Found XL Autogun Array 2000 | -10/Exiles | Discovered new exit (range 14) 2021 | -10/Exiles | Entered Mines 2021 | -9/Mines | Accompanied by 1 ally 2095 | -9/Mines | Discovered new exit (range 15) 2117 | -9/Mines | Entered Materials 2117 | -8/Materials | Evolved 4 slots: Utility x2, Weapon x2 2118 | -8/Materials | Identified exit to Storage 2489 | -8/Materials | Garrison activated, responded to threat 2547 | -8/Materials | Build established: Scavenger-Skirmisher 2558 | -8/Materials | Identified exit to Garrison 2560 | -8/Materials | Entered Garrison 2622 | -8/Garrison | Triggered checkpoint 2647 | -8/Garrison | Triggered checkpoint 2717 | -8/Garrison | Discovered new exit (range 12) 2854 | -8/Garrison | Discovered new exit (range 17) 2870 | -8/Garrison | Identified exit to Factory 2946 | -8/Garrison | Discovered exit to Factory (range 19) 2969 | -8/Garrison | Installed Relay Interface Framework 3006 | -8/Garrison | Triggered checkpoint 3034 | -8/Garrison | Garrison Relay disabled 3075 | -8/Garrison | Entered Factory 3075 | -7/Factory | Evolved 2 slots: Propulsion x1, Weapon x1 3186 | -7/Factory | Garrison activated, responded to threat 3260 | -7/Factory | Identified exit to Garrison 3307 | -7/Factory | Entered Garrison 3307 | -7/Garrison | Accompanied by 2 allies 3350 | -7/Garrison | Triggered checkpoint 3428 | -7/Garrison | Discovered new exit (range 12) 3437 | -7/Garrison | Identified exit to Factory 3494 | -7/Garrison | Triggered checkpoint 3502 | -7/Garrison | Triggered checkpoint 3546 | -7/Garrison | Destroyed 9 combat bots 3668 | -7/Garrison | Triggered checkpoint 3874 | -7/Garrison | Garrison Relay disabled 3936 | -7/Garrison | Discovered exit to Factory (range 17) 3976 | -7/Garrison | Expanded RIF knowledge: Command Fork 3984 | -7/Garrison | Entered Factory 4265 | -7/Factory | Build established: Bothacker-Skirmisher 4542 | -7/Factory | Discovered new exit (range 15) 4573 | -7/Factory | Identified exit to Lower Caves 4960 | -7/Factory | Build established: Scavenger-Skirmisher 5241 | -7/Factory | Identified exit to Garrison 5242 | -7/Factory | Entered Garrison 5252 | -7/Garrison | Triggered checkpoint 5256 | -7/Garrison | Triggered checkpoint 5304 | -7/Garrison | Garrison Relay disabled 5508 | -7/Garrison | Destroyed 9 combat bots 5562 | -7/Garrison | Triggered checkpoint 5576 | -7/Garrison | Discovered new exit (range 13) 5581 | -7/Garrison | Identified exit to Factory 5618 | -7/Garrison | Discovered exit to Factory (range 12) 5649 | -7/Garrison | Triggered checkpoint 5689 | -7/Garrison | Discovered exit to Factory (range 11) 5698 | -7/Garrison | Expanded RIF knowledge: Command Fork 5730 | -7/Garrison | Build established: Bothacker-Skirmisher 5760 | -7/Garrison | Garrison Relay disabled 5812 | -7/Garrison | Entered Factory 5812 | -6/Factory | Evolved 2 slots: Utility x2 6058 | -6/Factory | Fabricated Remote Datajack (x1) 6120 | -6/Factory | Garrison activated, responded to threat 6298 | -6/Factory | Identified exit to Garrison 6299 | -6/Factory | Entered Garrison 6438 | -6/Garrison | Triggered checkpoint 6454 | -6/Garrison | Triggered checkpoint 6502 | -6/Garrison | Discovered new exit (range 12) 6508 | -6/Garrison | Identified exit to Factory 6512 | -6/Garrison | Expanded RIF knowledge: Watcher Feeds 6545 | -6/Garrison | Garrison Relay disabled 6554 | -6/Garrison | Triggered checkpoint 6618 | -6/Garrison | Entered Factory 6754 | -6/Factory | Build established: Skirmisher 6803 | -6/Factory | Identified exit to Garrison 6922 | -6/Factory | Garrison activated, responded to threat 6938 | -6/Factory | Allied Derelicts emerged from ambush trap array 6998 | -6/Factory | Entered Garrison 6998 | -6/Garrison | Accompanied by 1 ally 7022 | -6/Garrison | Triggered checkpoint 7024 | -6/Garrison | Triggered checkpoint 7070 | -6/Garrison | Discovered new exit (range 11) 7075 | -6/Garrison | Identified exit to Factory 7179 | -6/Garrison | Triggered checkpoint 7205 | -6/Garrison | Triggered checkpoint 7211 | -6/Garrison | Crushed by falling debris 7211 | -6/Garrison | System corruption reached 10% 7226 | -6/Garrison | Discovered exit to Factory (range 13) 7235 | -6/Garrison | Expanded RIF knowledge: Patrol Navigation 7238 | -6/Garrison | Entered Factory 7238 | -5/Factory | Evolved 2 slots: Propulsion x1, Utility x1 7341 | -5/Factory | Discovered new exit (range 13) 7450 | -5/Factory | Repaired Imp. Airjet 7486 | -5/Factory | Build established: Mutant 7538 | -5/Factory | First assault squad dispatched 7649 | -5/Factory | Repaired Adv. Terrain Scanner 7886 | -5/Factory | Discovered new exit (range 4) 7887 | -5/Factory | Identified exit to Factory 7970 | -5/Factory | Repaired Adv. Sensor Array 8282 | -5/Factory | Identified exit to Garrison 8282 | -5/Factory | Entered Garrison 8285 | -5/Garrison | Expanded RIF knowledge: Hotswap 8326 | -5/Garrison | Triggered checkpoint 8366 | -5/Garrison | Garrison Relay disabled 8368 | -5/Garrison | Lost 3 parts (1n2w) 8423 | -5/Garrison | Spotted B-75 Beast 8478 | -5/Garrison | Core integrity fell below 50% 8532 | -5/Garrison | Lost 8 parts (4n2u2w) 8630 | -5/Garrison | Core integrity fell below 20% 8633 | -5/Garrison | Destroyed by S-27 Virus with Autogun Last Messages --------------- 08621_ System corrupted: FCS attempts to trigger Autogun. 08621_ System corrupted: Autogun misfires. Garrison Door activated. 08622_ S-27 Virus destroyed. 08624_ Autogun destroyed. 08624_ Adv. Sensor Array destroyed. 08626_ S-27 Virus destroyed. 08627_ C-30 ARC bursts open, deploying its payload. 08627_ H-66 Slayer unfolds itself. 08627_ Penetrated by Slug. 08627_ Slug penetrates Reinforced Barrier. 08627_ Acquired Autogun. 08627_ Mic. Fission Core destroyed. 08629_ Imp. Terrain Scanner destroyed. 08630_ Penetrated by Slug. 08630_ Antigrav System destroyed. 08630_ Slug penetrates Reinforced Barrier. 08633_ Knocked back. 08633_ Penetrated by Slug. 08633_ Autogun destroyed. Map ----- +----------------------------------------------------+ | ?????????????????????????????????????????????????? | | ?????????????????????????????????????????????????? | | ?????????????????????????????????????????????????? | | ?????????????????????????????????????????????????? | | ?????????????????????????????????????????????????? | | ?????????????????????????????????????????????????? | | ?????????????????????????????????????????????????? | | ?????????????????????????????????????????????????? | | ???????????????? ????????? ??????????????????????? | | ??????????????#??????????? #????????????????????? | | ??????????????#??????????# ?????????????????????? | | ????????????????? ??# ##?# ## ????#?????????????? | | ??????#??#??????? ??? ?### #??"""##??#??????????? | | ?????###?#??#?#? ####### ? ???????????? | | ?????#???#????## ?? ? ? ????????????? | | ?#?#??????###### ? ?????????? | | #?##?#?????##?####?###?##s ## #? ??????????? | | ?##?#?######?############ s## ## #??#??????? | | ?#??####?###?#?####?### ^ " ????????? | | ##?#?####?############# BB "?#???????? | | ##???#?##?############# [ BB "?????????? | | ##?###?################ %= ? ????????? | | ?####?#?#?#####?#######?#s ;; ## #??#??#???? | | #?#######################ss #; ## ####??????? | | #?#?########### % ?????? | | ?###?#?######## @s ? ???? | | ##?############ s h ##????????? | | #?#?########### ########;### h ## ##?## ?????? | | ##?############ ########%### %CC#? ###????????? | | ############### =%######## ######### ###?#??????? | | ##?####"# # # = %%%%%%%%%######### #####??????? | | #######" # # *#####%####?####?## # ? ??????? | | ####### ! #### #####%#######?#### ##?## ?????? | | #?#####" #### #?###%###########? ###????#???? | | #######"# #### #####%#####?######? #?#?#??????? | | ?######## #### #####%############ ?? ? ?????? | | ######### #### ##### ############ ? ??????? | | ######### #### ##### ############?##??#?##????? | | ######### #### ##### #######?#?##########?????? | | ####### #### #####!###########??##??#???????? | | #######% #### ##### ##############???#?#?????? | | ####### #### #####%###########?#??#??#??????? | | ######### #### #####=#########?#?#####????????? | | ######### #### #####%#############????#???????? | | ####?#### # !**=##########???###?????????? | | ######### #######?#############??????????? | | ###?########### #################????#?????????? | | ############### ##############?####????????????? | | ?############## ###############?##??#??????????? | | #############?# #######?##?###??##?????????????? | +----------------------------------------------------+ Best States ------------- Heat Dissipation 40 Energy Generation 18 Energy Capacity 290 Matter Stores 300 Matter Capacity 300 Sight Range 20 Robot Scan Range 16 Terrain Scan Range 20 Terrain Scan Density 210 ECM Strength 3 Cloak Strength 3 Evasion (%) 56 Recoil Reduction 3 Relay Coupler Types 52 Relay Coupler Value 2 Item Schematics ----------------- Remote Datajack | -7/Factory | Scanalyzed Antigrav System | -5/Factory | Scanalyzed Adv. Sensor Array | -5/Factory | Scanalyzed Adv. Terrain Scanner | -5/Factory | Scanalyzed Robot Schematics ------------------ None Fabricated ------------ Remote Datajack | x1 | -6/Factory Alien Tech Used ----------------- None Achievements -------------- Gun Specialist Challenges ------------ None Game ------ Seed PowerCryofiberAccelerator Manual? 0 Play Time 02:36:31 Cumulative 62.7 hours Start 2022.01.13 @ 16:54:43 End 2022.01.13 @ 19:33:04 Sessions 1 Manual Loads 0 Difficulty Rogue Special Mode None Game No. 124 Rogue 124 Adventurer 0 Explorer 0 Win Type - Total 0 Types 0/0/0/0/0/0/0/0/0 Lore% 42 Gallery% 45 Achievement% 36 Wizard Run 0 Options --------- ASCII 0 Keyboard 0 Movement Numpad Keybinds 0 Fullscreen 2 Font 24/Smallcaps Map View 76x50 Tactical HUD 1 Map Filters NONE Filters NONE Steam 1 RUN: cf0a4e0c-fa0c-430d-b26d-01e9e71bd5a9